bitfinex/quotes_ETHUSD_20250217
["timestamp","ask_amount","ask_price","bid_price","bid_amount"]
[1739758428302,0.33908835,2682.8,2682.7,7.45502]
[1739758428592,0.33908835,2682.8,2682.7,8.283352]
[1739758430265,0.33908835,2682.8,2682.7,4.555842]
[1739758432205,0.33908835,2682.8,2682.7,3.72751]
[1739758434597,0.33908835,2682.8,2682.6,3.7277]
[1739758437008,0.33908835,2682.8,2682.4,0.7554]
[1739758437308,0.0206,2682.7,2682.2,3.7282]
[1739758437472,0.36003184,2682.7,2682.2,3.7282]
[1739758437675,0.0206,2682.7,2682.2,3.72819]
[1739758437894,5.3606,2682.7,2682.2,3.72819]
[1739758438087,0.87549184,2682.6,2682.2,3.72819]
[1739758439309,0.33943184,2682.6,2682.2,3.72819]
[1739758440399,0.33943184,2682.6,2682.2,3.72827]
[1739758441909,0.33943184,2682.6,2682.4,3.72795]
[1739758442108,0.33943184,2682.6,2682.5,3.72786]
[1739758442790,0.33943184,2682.6,2682.4,3.72793]
[1739758443185,0.33943184,2682.6,2682.5,3.72786]
[1739758443403,0.60843184,2682.6,2682.5,3.72786]
[1739758443603,0.60843184,2682.6,2682.4,3.72793]
[1739758443798,0.60843184,2682.6,2682.4,3.72791]
[1739758444710,0.33943184,2682.6,2682.5,3.72786]
[1739758444898,0.268,2682.6,2682.5,4.549297]
[1739758445106,0.33920928,2682.6,2682.5,4.549297]
[1739758445284,0.33920928,2682.6,2682.5,5.307897]
[1739758445913,0.268,2682.7,2682.6,3.72772]
[1739758446585,0.268,2682.7,2682.5,4.48646]
[1739758446914,0.268,2682.7,2682.5,3.72786]
[1739758447100,0.268,2682.7,2682.5,3.72779]
[1739758447304,0.268,2682.7,2682.4,3.728]
[1739758449820,0.268,2682.6,2682.5,3.72786]
[1739758450324,0.268,2682.6,2682.2,3.72819]
[1739758450501,0.268,2682.6,2682.4,3.72788]
[1739758450827,0.268,2682.6,2682.4,7.45578]
[1739758451488,0.268,2682.6,2682.5,3.72786]
[1739758451900,0.2886,2682.6,2682.3,3.72813]
[1739758452105,0.2886,2682.6,2682.1,4.52631]
[1739758452106,0.2886,2682.6,2682.1,3.72831]
[1739758452514,0.33936191,2682.5,2682.1,3.72831]
[1739758453115,0.33936191,2682.5,2682.3,3.72806]
[1739758453515,0.33936191,2682.5,2682.4,3.728]
[1739758454706,0.33936191,2682.5,2682.3,3.72806]
[1739758454908,0.33936191,2682.5,2682.3,3.72807]
[1739758457434,0.33936191,2682.5,2682.4,3.728]
[1739758457735,0.60736191,2682.5,2682.3,4.177297]
[1739758457907,0.60736191,2682.5,2682.3,4.177287]
[1739758459432,0.60736191,2682.5,2682.4,3.728]
[1739758475751,0.60736191,2682.5,2682.3,3.72814]
[1739758477239,0.60736191,2682.5,2682.3,7.4562]
[1739758477556,0.60736191,2682.5,2682.3,3.72806]
[1739758477732,0.60736191,2682.5,2682.4,3.728]
[1739758479735,0.60736191,2682.5,2682.2,3.72819]
[1739758480558,0.60736191,2682.5,2682.3,3.72806]
[1739758484656,0.60736191,2682.5,2682.2,3.72821]
[1739758484957,0.60736191,2682.5,2682.0,0.8271]
[1739758485159,0.60736191,2682.5,2682.3,3.72813]
[1739758486258,0.60736191,2682.5,2682.1,3.72831]
[1739758486426,0.0206,2682.4,2682.0,3.72855]
[1739758486849,0.33906305,2682.3,2682.0,3.72855]
[1739758487266,0.33906305,2682.3,2682.1,3.72834]
[1739758487757,0.33906305,2682.3,2682.0,3.72844]
[1739758489266,1.93760745,2682.3,2681.8,3.72871]
[1739758489571,0.0206,2682.2,2681.7,3.72887]
[1739758489871,0.35958037,2682.2,2681.5,4.56173]
[1739758490231,1.5985444,2682.1,2681.5,8.29091]
[1739758490451,1.5985444,2682.1,2681.6,3.72911]
[1739758490659,0.33895493,2682.0,2681.6,3.72911]
[1739758491161,0.0206,2681.9,2681.5,3.72925]
[1739758491331,5.3606,2681.9,2681.5,3.72925]
[1739758491531,0.33878319,2681.8,2681.4,3.72939]
[1739758491765,0.268,2681.7,2681.4,3.72939]
[1739758492134,0.33878319,2681.6,2681.4,3.72939]
[1739758493054,0.33878319,2681.6,2681.5,3.72925]
[1739758494263,0.268,2681.6,2681.5,3.72925]
[1739758494462,0.6065796,2681.6,2681.5,3.72925]
[1739758494670,0.268,2681.6,2681.5,3.72925]
[1739758495252,0.60658596,2681.6,2681.5,3.72925]
[1739758495865,0.33858596,2681.6,2681.5,5.390974]
[1739758496065,0.60658596,2681.6,2681.5,5.390974]
[1739758496369,0.60614707,2681.6,2681.5,5.390974]
[1739758501268,0.33814707,2681.6,2681.5,5.390974]
[1739758501674,0.268,2681.7,2681.6,3.72911]
[1739758501970,0.268,2681.7,2681.6,5.0140574]
[1739758502178,0.268,2681.7,2681.5,7.4585]
[1739758502336,0.60624251,2681.7,2681.5,7.4585]
[1739758502878,0.60624251,2681.7,2681.6,3.72911]
[1739758503178,0.268,2681.7,2681.6,3.72911]
[1739758506781,0.268,2681.7,2681.5,3.72923]
[1739758507077,0.0206,2681.6,2680.9,3.73009]
[1739758507278,0.0206,2681.5,2680.9,3.73007]
[1739758507479,0.0206,2681.5,2680.6,0.7851]
[1739758507652,0.33801345,2681.4,2680.8,3.7302]
[1739758507856,0.0206,2681.3,2680.7,3.73036]
[1739758508073,0.0206,2681.3,2680.7,3.73029]
[1739758508283,0.0206,2681.1,2680.7,3.73029]
[1739758508474,0.0206,2681.1,2680.7,7.46058]
[1739758508976,0.33801345,2681.0,2680.7,3.73028]
[1739758509147,0.33801345,2681.0,2680.8,3.73022]
[1739758509148,0.268,2680.9,2680.8,3.73022]
[1739758509654,0.60601345,2680.9,2680.8,3.73022]
[1739758509850,0.268,2680.9,2680.8,3.73022]
[1739758510059,0.60601345,2680.9,2680.8,3.73022]
[1739758510250,0.268,2680.9,2680.7,3.73028]
[1739758510451,0.60601345,2680.9,2680.7,3.73028]
[1739758510667,0.268,2680.9,2680.8,3.73022]
[1739758511476,0.60601345,2680.9,2680.8,3.73022]
[1739758511644,0.268,2680.9,2680.8,3.73022]
[1739758511980,0.268,2680.9,2680.6,3.73037]
[1739758512139,0.60601345,2680.9,2680.7,3.73027]
[1739758512345,0.268,2680.9,2680.7,3.73027]
[1739758512678,0.33801345,2680.8,2680.7,3.73027]
[1739758512872,0.33801345,2680.8,2680.6,7.46079]
[1739758513079,0.33801345,2680.8,2680.6,3.73037]
[1739758513285,0.33801345,2680.8,2680.7,3.73036]
[1739758515457,0.33801345,2680.8,2680.7,4.49726]
[1739758515664,0.269,2680.8,2680.7,4.49726]
[1739758516389,0.33759972,2680.8,2680.7,4.49726]
[1739758516589,0.0206,2681.1,2680.7,4.49726]
[1739758516590,5.3606,2681.3,2680.7,1.62696278]
[1739758516759,0.269,2681.2,2681.1,3.72972]
[1739758517459,0.60663792,2681.2,2681.1,3.72972]
[1739758517682,0.269,2681.2,2681.1,3.72972]
[1739758518598,0.60663792,2681.2,2681.1,3.72972]
[1739758518781,0.60663792,2681.2,2681.1,3.72981]
[1739758521892,0.60663792,2681.2,2681.1,4.49671]
[1739758522409,0.60663792,2681.2,2681.1,3.72981]
[1739758523268,0.60663792,2681.2,2681.0,3.72993]
[1739758523269,0.60663792,2681.2,2681.0,3.72994]
[1739758523501,0.60663792,2681.2,2681.0,3.72993]
[1739758523704,0.60663792,2681.2,2680.7,0.7669]
[1739758523873,0.0206,2681.1,2680.9,3.73007]
[1739758524199,0.33740248,2681.0,2680.7,3.73034]
[1739758524505,0.33740248,2681.0,2680.7,7.46059]
[1739758524668,0.33740248,2681.0,2680.7,3.73029]
[1739758524869,0.33740248,2681.0,2680.7,7.46059]
[1739758525068,0.33740248,2681.0,2680.7,3.73029]
[1739758525270,0.33740248,2681.0,2680.8,3.73009]
[1739758525603,0.33740248,2681.0,2680.9,3.73009]
[1739758526671,0.33740248,2681.0,2680.8,3.73015]
[1739758527007,0.33740248,2681.0,2680.9,3.73009]
[1739758528701,0.60640248,2681.0,2680.9,3.73009]
[1739758529763,0.33740248,2681.0,2680.9,3.73009]
[1739758530073,0.60640248,2681.0,2680.9,3.73009]
[1739758531743,0.60640248,2681.0,2680.8,3.73014]
[1739758532056,0.60640248,2681.0,2680.8,7.4603]
[1739758532259,0.60640248,2681.0,2680.9,3.73009]
[1739758542443,0.33740248,2681.0,2680.9,5.28181701]
[1739758542639,0.33740248,2681.0,2680.9,5.244519]
[1739758543540,5.34,2681.6,2681.5,3.72925]
[1739758543858,5.34,2681.6,2681.0,3.72995]
[1739758543859,6.09414472,2681.8,2681.6,7.45813]
[1739758544060,1.44741447,2681.7,2681.6,3.72904]
[1739758544280,0.269,2681.7,2681.6,3.72904]
[1739758545067,5.609,2681.8,2681.7,3.72897]
[1739758545270,5.609,2681.8,2681.7,4.49737]
[1739758547142,5.93480124,2681.8,2681.7,4.49737]
[1739758547343,5.66580124,2681.8,2681.7,4.49737]
[1739758547782,0.32580124,2681.8,2681.7,4.49737]
[1739758551368,0.32580124,2681.8,2681.7,5.320011]
[1739758551593,0.32580124,2681.8,2681.7,8.51940467]
[1739758551761,0.268,2682.3,2682.2,3.72828]
[1739758552181,0.59383328,2682.3,2682.2,3.72828]
[1739758552370,0.268,2682.3,2682.2,3.72828]
[1739758552545,0.268,2682.3,2682.2,5.290348]
[1739758552546,0.59383328,2682.3,2682.2,5.290348]
[1739758552751,0.32583328,2682.3,2682.2,5.290348]
[1739758553095,0.268,2682.5,2682.4,3.728]
[1739758553302,5.608,2682.6,2682.5,3.72786]
[1739758556699,0.268,2682.6,2682.5,3.72786]
[1739758557195,0.268,2682.6,2682.4,3.72797]
[1739758557893,0.268,2682.6,2682.4,7.45585]
[1739758558100,0.268,2682.6,2682.4,3.72788]
[1739758558295,0.268,2682.6,2682.5,3.72786]
[1739758559999,0.268,2682.6,2682.5,4.473434]
[1739758560707,5.34,2683.1,2682.7,4.52098]
[1739758560860,0.268,2682.8,2682.7,4.52098]
[1739758561763,13.7396,2683.2,2682.7,4.52098]
[1739758562087,0.268,2683.1,2682.8,3.72733]
[1739758562405,0.59510181,2683.1,2682.9,3.72729]
[1739758562599,0.32710181,2683.1,2683.0,3.72717]
[1739758562800,0.59510181,2683.1,2683.0,3.72717]
[1739758563303,0.59510181,2683.1,2682.9,3.72729]
[1739758563547,2.02857199,2683.1,2682.6,3.72762]
[1739758563688,0.0206,2683.0,2682.6,3.0]
[1739758564029,0.3273387,2682.9,2682.6,3.0]
[1739758564351,0.0206,2682.7,2681.0,3.19939367]
[1739758564490,0.0206,2682.4,2681.6,3.7291]
[1739758564689,0.32199937,2682.6,2681.2,0.7934]
[1739758564690,0.0206,2682.1,2681.2,0.7934]
[1739758565003,0.0206,2682.0,2680.9,0.7934]
[1739758565205,0.0206,2681.8,2681.2,3.72966]
[1739758565607,0.0206,2681.8,2681.0,3.72987]
[1739758565815,0.6488258,2681.7,2681.0,3.72987]
[1739758565988,0.6488258,2681.7,2681.0,7.45971]
[1739758566203,0.32682643,2681.7,2681.2,3.72963]
[1739758566421,0.32682643,2681.7,2681.1,3.72975]
[1739758567029,0.32682643,2681.7,2681.3,3.72944]
[1739758567263,0.32682643,2681.7,2681.4,3.72937]
[1739758567395,0.0206,2681.8,2681.3,3.72944]
[1739758567597,0.32624979,2681.6,2681.3,3.72944]
[1739758567791,0.268,2681.5,2681.3,3.72944]
[1739758568013,0.59424979,2681.5,2681.3,3.72944]
[1739758568297,0.32624979,2681.4,2681.3,3.72944]
[1739758568540,0.32624979,2681.4,2681.3,4.181724]
[1739758568746,0.268,2681.7,2681.3,0.452284]
[1739758568908,0.268,2681.7,2681.4,3.72928]
[1739758570014,0.32624979,2681.6,2681.4,3.72928]
[1739758572155,0.34684979,2681.6,2681.0,3.72985]
[1739758572560,0.34684979,2681.6,2681.2,3.67965]
[1739758573364,0.34684979,2681.6,2681.1,3.72971]
[1739758573933,0.34684979,2681.6,2681.2,3.72963]
[1739758576085,0.34684979,2681.6,2681.0,3.72985]
[1739758576762,0.0206,2681.5,2680.7,3.73036]
[1739758576934,0.0206,2681.3,2680.7,3.73036]
[1739758577139,0.0206,2681.3,2680.6,3.73043]
[1739758577340,0.32558341,2681.2,2680.6,7.46086]
[1739758577570,0.32558341,2681.2,2680.6,3.73043]
[1739758577742,0.32558341,2681.2,2680.7,3.73036]
[1739758577946,0.32558341,2681.2,2680.6,3.7305]
[1739758578793,0.32558341,2681.2,2680.7,3.73036]
[1739758579109,0.32558341,2681.2,2680.7,3.73023]
[1739758581709,0.32558341,2681.2,2680.8,3.73012]
[1739758582069,0.0206,2681.3,2680.8,3.73012]
[1739758582293,0.32535903,2681.1,2680.8,3.73012]
[1739758582483,0.0206,2681.3,2680.8,3.73012]
[1739758583011,0.32535262,2681.2,2680.8,3.73012]
[1739758583372,0.0206,2681.3,2680.8,3.73012]
[1739758583573,0.32535262,2681.2,2680.8,3.73012]
[1739758583810,0.0206,2681.3,2680.8,3.73012]
[1739758584106,0.32535262,2681.1,2680.8,3.73012]
[1739758584437,0.32535262,2681.0,2680.7,3.73034]
[1739758584574,0.268,2680.9,2680.7,3.73034]
[1739758585073,0.32535262,2680.8,2680.7,3.73034]
[1739758587115,0.34595262,2680.8,2680.5,3.73063]
[1739758587503,0.34595262,2680.8,2680.3,3.73085]
[1739758587811,0.34595262,2680.8,2680.3,7.4617]
[1739758588119,0.34595262,2680.8,2680.3,3.73085]
[1739758588306,0.34595262,2680.8,2680.4,3.73077]
[1739758590819,0.34595262,2680.8,2680.3,3.73085]
[1739758591021,0.34595262,2680.8,2680.1,3.7311]
[1739758591207,0.0206,2680.7,2680.1,3.7311]
[1739758591410,0.0206,2680.5,2680.0,3.73131]
[1739758591606,5.34,2680.5,2679.9,3.73137]
[1739758591815,0.0206,2680.4,2679.9,3.73137]
[1739758592008,0.34527938,2680.4,2679.9,7.46277]
[1739758592331,0.34527938,2680.4,2679.9,3.73137]
[1739758592519,0.34527938,2680.4,2680.0,3.73127]
[1739758593314,0.97066684,2680.4,2680.0,3.73127]
[1739758593857,0.97066684,2680.4,2679.8,3.73162]
[1739758594664,0.97066684,2680.4,2680.2,3.73099]
[1739758594957,0.34527938,2680.4,2680.2,3.73099]
[1739758595522,0.32467938,2680.4,2680.3,3.73092]
[1739758595718,0.59267938,2680.4,2680.3,3.73092]
[1739758597378,0.59267938,2680.4,2680.2,3.73097]
[1739758597551,0.59267938,2680.4,2680.3,3.73092]
[1739758598882,0.32467938,2680.4,2680.3,3.73092]
[1739758599061,0.32467938,2680.4,2680.3,8.252409]
[1739758600786,0.268,2680.6,2680.5,3.73064]
[1739758610498,0.268,2680.6,2680.4,3.73077]
[1739758611933,0.268,2680.6,2680.4,3.73071]
[1739758612126,0.2886,2680.6,2680.4,3.73071]
[1739758612302,0.32478202,2680.5,2680.4,3.73071]
[1739758621361,0.268,2680.6,2680.5,3.73064]
[1739758621771,0.268,2680.6,2680.4,3.7307]
[1739758622382,0.268,2680.6,2680.5,3.73064]
[1739758622546,0.0206,2680.8,2680.5,3.73064]
[1739758622754,0.268,2680.7,2680.6,3.73048]
[1739758623251,0.59278202,2680.7,2680.5,4.49914]
[1739758623471,0.59278202,2680.7,2680.4,3.73076]
[1739758624194,0.59278202,2680.7,2680.3,3.73082]
[1739758624355,0.59278202,2680.7,2679.9,6.73144]
[1739758624356,0.0206,2680.6,2680.1,3.73108]
[1739758624552,5.34,2680.6,2679.9,3.7314]
[1739758624890,0.0206,2680.4,2679.7,0.7685]
[1739758625189,0.0206,2680.4,2679.6,3.7318]
[1739758625390,0.32441648,2680.3,2679.6,3.7318]
[1739758625558,0.0206,2680.2,2679.6,3.7318]
[1739758625753,5.3606,2680.2,2679.6,3.7318]
[1739758625949,5.3606,2680.2,2679.7,3.73162]
[1739758625950,0.86047648,2680.1,2679.7,3.73162]
[1739758626580,0.86047648,2680.1,2679.7,7.46331]
[1739758626853,0.86047648,2680.1,2679.7,3.73162]
[1739758627287,0.86047648,2680.1,2679.5,3.7423932]
[1739758627497,0.86047648,2680.1,2679.5,0.0104932]
[1739758627700,0.86047648,2680.1,2679.6,3.7319]
[1739758627863,0.86047648,2680.1,2679.6,7.46371]
[1739758628203,0.62210765,2680.0,2679.5,3.7424432]
[1739758628399,0.268,2679.9,2679.5,0.0104932]
[1739758628558,0.0206,2679.8,2679.5,0.0104932]
[1739758629364,0.32423043,2679.7,2679.5,0.0104932]
[1739758629902,0.32423043,2679.6,2679.5,0.0104932]
[1739758630113,5.34,2679.8,2679.5,0.0104932]
[1739758630420,0.34483043,2679.6,2679.5,0.0104932]
[1739758630571,0.0206,2679.6,2679.5,0.0104932]
[1739758630773,0.3446251,2679.6,2679.5,0.0104932]
[1739758631106,5.6846251,2679.6,2679.5,0.0104932]
[1739758631271,6.2346251,2679.6,2679.5,0.0104932]
[1739758631471,7.23410698,2679.6,2679.5,0.0104932]
[1739758633811,6.68410698,2679.6,2679.5,0.0104932]
[1739758634184,7.23410698,2679.6,2679.5,0.0104932]
[1739758637031,0.0206,2679.2,2677.9,3.73426]
[1739758637318,0.0206,2678.8,2678.4,3.73356]
[1739758637514,0.0206,2679.0,2678.6,3.73328]
[1739758637723,0.269,2678.9,2678.8,3.73298]
[1739758639082,5.34,2679.2,2679.1,3.73259]
[1739758639278,5.609,2679.2,2679.1,3.73259]
[1739758639493,5.609,2679.2,2679.0,3.7327]
[1739758640404,0.75989829,2679.5,2679.0,0.7554]
[1739758640603,0.269,2679.4,2679.3,3.73231]
[1739758642116,0.269,2679.4,2679.2,3.73234]
[1739758644553,0.269,2679.4,2679.1,3.7325]
[1739758645252,0.269,2679.4,2679.0,0.7554]
[1739758645471,0.269,2679.4,2679.2,3.73239]
[1739758645764,0.269,2679.4,2679.1,3.73251]
[1739758646751,0.269,2679.4,2679.1,7.46503]
[1739758647069,0.269,2679.4,2679.1,3.73251]
[1739758647568,0.269,2679.4,2678.9,3.73282]
[1739758647714,0.269,2679.4,2678.9,3.73276]
[1739758648054,0.269,2679.4,2679.1,3.73258]
[1739758648385,0.269,2679.4,2679.2,3.73245]
[1739758648786,0.269,2679.4,2679.3,3.73231]
[1739758649057,0.269,2679.4,2679.2,3.73245]
[1739758649634,0.269,2679.4,2679.3,3.73231]
[1739758649833,0.269,2679.4,2679.2,3.73245]
[1739758650257,0.269,2679.4,2679.2,3.73238]
[1739758651373,0.269,2679.4,2679.3,3.73231]
[1739758651539,0.269,2679.4,2679.1,3.73252]
[1739758652070,0.269,2679.4,2679.1,7.46503]
[1739758652271,0.269,2679.4,2679.1,3.73251]
[1739758652478,0.32278014,2679.3,2679.1,3.73251]
[1739758653070,0.32278014,2679.3,2679.2,3.73245]
[1739758654939,0.32278014,2679.3,2679.1,3.73257]
[1739758655443,0.32278014,2679.3,2679.1,7.46508]
[1739758655644,0.32278014,2679.3,2679.1,3.73251]
[1739758655844,0.32278014,2679.3,2679.2,3.73245]
[1739758658941,0.269,2679.3,2679.2,3.73245]
[1739758659178,0.59178014,2679.3,2679.2,3.73245]
[1739758659974,0.32278014,2679.3,2679.2,4.561246]
[1739758660182,0.269,2679.4,2679.3,3.73231]
[1739758664494,0.0206,2679.9,2679.2,4.561246]
[1739758664664,0.0206,2680.2,2679.9,3.73141]
[1739758664980,0.269,2680.1,2679.9,3.73141]
[1739758666454,0.269,2680.1,2679.7,3.73163]
[1739758667363,0.32315243,2680.0,2679.7,3.73163]
[1739758669300,0.32315243,2680.0,2679.5,3.73199]
[1739758669465,0.32315243,2680.0,2679.5,3.73195]
[1739758669666,0.32315243,2680.0,2679.6,3.73177]
[1739758671300,0.0206,2679.9,2679.2,4.53896]
[1739758671598,0.0206,2679.7,2679.2,3.73236]
[1739758672195,0.32305616,2679.6,2679.2,3.73236]
[1739758672711,0.32305616,2679.6,2679.3,3.73225]
[1739758675177,0.32305616,2679.6,2679.1,3.73259]
[1739758675731,0.32305616,2679.6,2679.2,3.73243]
[1739758675882,0.9248593,2679.6,2679.2,3.73243]
[1739758676227,0.0206,2679.5,2679.0,3.73266]
[1739758676425,0.0206,2679.5,2679.0,7.4653]
[1739758676628,0.32279298,2679.4,2679.0,7.4653]
[1739758676925,0.268,2679.3,2679.0,7.4653]
[1739758677231,0.59078656,2679.3,2679.0,3.73264]
[1739758677581,0.59078656,2679.3,2679.1,3.73255]
[1739758677888,0.59078656,2679.3,2678.9,4.53939]
[1739758678094,0.59078656,2679.3,2678.9,3.73279]
[1739758680337,0.59078656,2679.3,2679.0,3.73265]
[1739758680903,0.59078656,2679.3,2678.6,0.8061]
[1739758681105,0.59078656,2679.3,2678.7,3.73315]
[1739758681305,0.0206,2679.2,2678.8,3.73293]
[1739758681513,0.34333519,2679.2,2678.8,3.73293]
[1739758682644,0.34333519,2679.2,2678.9,3.73279]
[1739758683136,0.34333519,2679.2,2678.9,7.46559]
[1739758683309,0.34333519,2679.2,2678.9,3.73279]
[1739758683504,0.34333519,2679.2,2678.6,3.73329]
[1739758683725,0.0206,2679.1,2678.6,3.73329]
[1739758683893,0.56833352,2679.0,2678.6,3.73329]
[1739758684088,0.32273519,2678.9,2678.6,3.73329]
[1739758684947,0.0206,2678.8,2678.4,3.73353]
[1739758685123,5.3606,2678.8,2678.4,3.73353]
[1739758685432,0.32256825,2678.7,2678.4,3.73353]
[1739758685631,0.89088507,2678.7,2678.4,3.73353]
[1739758685794,0.56831682,2678.7,2678.5,3.73329]
[1739758685991,0.32247834,2678.6,2678.5,4.53939]
[1739758686495,5.34,2678.8,2678.5,4.53939]
[1739758686700,5.34,2678.8,2678.7,3.73315]
[1739758686910,5.609,2678.8,2678.7,3.73315]
[1739758687823,5.34,2678.8,2678.7,4.53925]
[1739758688011,5.609,2678.8,2678.7,4.53925]
[1739758689434,5.34,2678.8,2678.7,4.53925]
[1739758689737,0.269,2678.9,2678.8,4.53911]
[1739758690038,5.3606,2679.6,2679.0,3.7327]
[1739758690237,0.269,2679.5,2679.0,3.73266]
[1739758690419,0.56296,2679.4,2679.0,7.4653]
[1739758690611,0.56296,2679.4,2679.0,3.73264]
[1739758690801,0.56296,2679.4,2679.1,3.73258]
[1739758691004,0.56296,2679.4,2678.8,0.8061]
[1739758691230,0.269,2679.5,2679.3,3.73231]
[1739758691811,5.34,2679.6,2679.5,3.73203]
[1739758692012,5.609,2679.6,2679.5,3.73203]
[1739758693237,5.34,2679.6,2679.5,3.73203]
[1739758693541,5.608,2679.6,2679.5,3.73203]
[1739758693745,8.4076,2680.1,2679.8,3.73157]
[1739758693917,0.268,2680.0,2679.8,3.73157]
[1739758695036,0.268,2680.0,2679.8,3.73154]
[1739758695245,8.387,2680.1,2679.9,3.73148]
[1739758695541,0.268,2680.0,2679.9,3.73148]
[1739758696103,0.268,2680.0,2679.7,4.51405]
[1739758696302,0.268,2680.0,2679.7,8.24569]
[1739758696539,1.1335,2680.0,2679.7,3.73162]
[1739758696842,1.1335,2680.0,2679.8,3.73161]
[1739758697337,0.32276714,2679.9,2679.8,3.73161]
[1739758697648,0.32276714,2679.9,2679.7,3.73162]
[1739758698144,0.32276714,2679.9,2679.7,7.4633]
[1739758698345,0.32276714,2679.9,2679.7,3.73162]
[1739758698648,0.32276714,2679.9,2679.3,3.73231]
[1739758698649,1.30709385,2679.9,2679.3,3.73231]
[1739758698884,0.32276714,2679.9,2679.8,3.73162]
[1739758700758,0.32276714,2679.9,2679.8,3.73162]
[1739758702759,0.32276714,2679.9,2679.6,3.73178]
[1739758704149,0.32276714,2679.9,2679.7,3.73169]
[1739758704448,0.32276714,2679.9,2679.7,7.46338]
[1739758704937,0.32276714,2679.9,2679.7,3.73169]
[1739758706449,0.32276714,2679.9,2679.7,7.46336]
[1739758707326,0.32276714,2679.9,2679.7,3.73167]
[1739758707522,0.32276714,2679.9,2679.5,0.7824]
[1739758707730,0.32276714,2679.9,2679.8,3.73162]
[1739758708350,0.32276714,2679.9,2679.5,0.7824]
[1739758708652,0.32276714,2679.9,2679.6,7.46364]
[1739758709256,0.32276714,2679.9,2679.8,3.73162]
[1739758709620,0.32276714,2679.9,2679.7,3.73174]
[1739758712819,0.32276714,2679.9,2679.8,3.73162]
[1739758713544,0.32276714,2679.9,2679.6,3.73187]
[1739758713949,0.32276714,2679.9,2679.6,7.46369]
[1739758714430,0.91790385,2679.9,2679.5,0.7824]
[1739758714635,0.91790385,2679.9,2679.4,7.46416]
[1739758714953,0.91790385,2679.9,2679.3,0.8072]
[1739758715157,0.0206,2679.8,2679.4,3.73215]
[1739758715362,0.34400918,2679.8,2679.4,3.73215]
[1739758715965,3.0,2679.7,2679.0,3.73264]
[1739758716258,0.0206,2679.6,2679.0,3.73264]
[1739758716423,0.0206,2679.6,2678.8,3.7329]
[1739758716953,0.0206,2679.4,2679.0,3.73272]
[1739758717367,0.32313317,2679.3,2679.0,3.73272]
[1739758717656,0.268,2679.2,2679.0,3.73272]
[1739758718163,0.268,2679.2,2679.1,3.73259]
[1739758718869,0.268,2679.2,2679.0,3.73273]
[1739758719567,0.268,2679.2,2679.0,7.46538]
[1739758719863,0.268,2679.2,2679.1,3.73259]
[1739758720979,3.0,2679.5,2679.1,4.53979]
[1739758721183,0.268,2679.4,2679.2,3.73244]
[1739758721961,0.268,2679.4,2679.3,3.73231]
[1739758722167,5.34,2679.6,2679.4,3.73209]
[1739758722362,0.0206,2680.0,2679.1,0.8072]
[1739758722561,0.268,2679.9,2679.6,3.73188]
[1739758723066,0.268,2679.9,2679.6,7.46369]
[1739758723277,0.268,2679.9,2679.8,3.73162]
[1739758727231,0.59122948,2679.9,2679.8,3.73162]
[1739758727666,0.59122948,2679.9,2679.5,0.7816]
[1739758727871,0.59122948,2679.9,2679.7,3.73167]
[1739758728571,0.59122948,2679.9,2679.6,3.73188]
[1739758728772,0.59122948,2679.9,2679.8,3.73162]
[1739758729670,0.32322948,2679.9,2679.8,3.73162]
[1739758729870,0.59122948,2679.9,2679.8,5.282656]
[1739758730177,0.59123589,2679.9,2679.8,5.282656]
[1739758733271,0.32323589,2679.9,2679.8,5.282656]
[1739758733472,0.59123589,2679.9,2679.8,5.282656]
[1739758733678,0.268,2679.9,2679.8,5.282656]
[1739758733883,0.59123589,2679.9,2679.8,5.282656]
[1739758734081,0.268,2679.9,2679.8,5.282656]
[1739758734256,0.59123589,2679.9,2679.8,5.282656]
[1739758734457,0.268,2679.9,2679.8,5.282656]
[1739758734658,0.59123589,2679.9,2679.8,5.282656]
[1739758734972,0.59150543,2679.9,2679.8,5.282656]
[1739758738080,0.59150543,2679.9,2679.7,3.73174]
[1739758738383,0.59150543,2679.9,2679.8,3.73162]
[1739758742151,0.59150543,2679.9,2679.7,3.73167]
[1739758742496,0.61210543,2679.9,2679.7,3.73167]
[1739758742857,0.61210543,2679.9,2679.8,3.73162]
[1739758743390,0.61210543,2679.9,2679.7,3.73167]
[1739758743589,0.2886,2679.9,2679.7,7.46336]
[1739758743755,0.2886,2679.9,2679.7,3.73167]
[1739758743956,0.268,2679.9,2679.8,3.73162]
[1739758745294,5.34,2680.2,2680.1,3.7312]
[1739758745488,5.608,2680.2,2680.0,3.73132]
[1739758745690,5.608,2680.2,2680.0,3.73126]
[1739758745855,5.608,2680.2,2680.0,7.46251]
[1739758746180,5.608,2680.2,2680.0,7.46252]
[1739758746492,5.608,2680.2,2679.9,3.73147]
[1739758746697,5.608,2680.2,2679.8,8.2314]
[1739758746991,5.608,2680.2,2679.9,3.73145]
[1739758748403,0.0206,2680.1,2679.8,3.73155]
[1739758749204,0.0206,2680.1,2679.6,4.50006]
[1739758749503,0.0206,2680.1,2679.7,3.73166]
[1739758749670,3.21999367,2680.1,2679.5,3.73197]
[1739758749874,0.0206,2679.7,2679.3,3.73222]
[1739758750072,5.68259937,2679.7,2679.3,3.73222]
[1739758750275,5.68259937,2679.7,2679.1,3.73249]
[1739758750594,3.19939367,2679.5,2679.1,3.73249]
[1739758750801,0.0206,2679.3,2679.1,3.73249]
[1739758751299,0.268,2679.4,2679.2,3.73245]
[1739758751863,0.268,2679.4,2679.1,3.73249]
[1739758752597,0.268,2679.4,2678.9,3.73281]
[1739758752798,0.61679937,2679.4,2678.9,3.73275]
[1739758752972,0.0206,2679.3,2678.9,3.73275]